fUSD/lending_fUSD_20260405
["ID","MTS","AMOUNT","RATE_DAILY","PERIOD"]
[419822058,1775398250386,-184.0,0.00014795,2]
[419822059,1775398250395,-500.0,0.00014802,2]
[419822060,1775398250405,-9905.5980765,0.00014802,2]
[419822061,1775398250415,-151.0,0.00014802,2]
[419822062,1775398250425,-500.0,0.00014857,2]
[419822063,1775398250434,-10272.10520533,0.00014857,2]
[419822064,1775398250444,-151.0,0.00014857,2]
[419822065,1775398250453,-881.74,0.00014884,2]
[419822066,1775398250463,-229.30734682,0.000149,2]
[419822067,1775398250472,-229.3073468,0.000149,2]
[419822068,1775398250482,-229.3073468,0.000149,2]
[419822069,1775398250492,-289.56339563,0.00014908,2]
[419822070,1775398250501,-500.0,0.00014912,2]
[419822071,1775398250511,-10652.17309792,0.00014912,2]
[419822072,1775398250520,-151.0,0.00014912,2]
[419822073,1775398250530,-200.0,0.00014932,2]
[419822074,1775398250539,-797.22,0.00014942,2]
[419822075,1775398250549,-1772.17,0.00014955,2]
[419822076,1775398250558,-806.66,0.00014955,2]
[419822077,1775398250568,-1268.28,0.00014955,2]
[419822078,1775398250578,-500.0,0.00014967,2]
[419822079,1775398250587,-5850.7516326,0.00014967,2]
[419822080,1775398250597,-151.0,0.00014967,2]
[419822081,1775398250606,-1772.17,0.00015,2]
[419822082,1775398250616,-1772.17,0.00015,2]
[419822083,1775398250625,-1772.17,0.00015,2]
[419822084,1775398250635,-1772.17,0.00015,2]
[419822085,1775398250644,-1772.3410465,0.00015,2]
[419822086,1775398250654,-806.66,0.00015,2]
[419822087,1775398250664,-806.66,0.00015,2]
[419822088,1775398250674,-806.66,0.00015,2]
[419822089,1775398250683,-806.66,0.00015,2]
[419822090,1775398250692,-806.84950636,0.00015,2]
[419822091,1775398250702,-1268.28,0.00015,2]
[419822092,1775398250710,-1268.28,0.00015,2]
[419822093,1775398250720,-1268.28,0.00015,2]
[419822094,1775398250730,-1268.28,0.00015,2]
[419822095,1775398250740,-1268.28484396,0.00015,2]
[419822096,1775398250750,-325.26403064,0.00015,2]
[419822097,1775398250759,-300.0,0.00015,3]
[419822098,1775398250768,-2067.27601646,0.00015,2]
[419822099,1775398250778,-8047.93487487,0.00015,2]
[419822100,1775398250788,-300.0,0.00015,2]
[419822101,1775398250797,-500.0,0.00015015,2]
[419822102,1775398250807,-2000.0,0.00015015,2]
[419822103,1775398250816,-500.0,0.00015022,2]
[419822104,1775398250827,-151.0,0.00015022,2]
[419822105,1775398250836,-596.0,0.00015065,2]
[419822106,1775398250846,-800.0,0.00015068,2]
[419822107,1775398250855,-500.0,0.00015077,2]
[419822108,1775398250865,-151.0,0.00015077,2]
[419822109,1775398250875,-1052.27587392,0.00015084,2]
[419822110,1775398250884,-1066.89306711,0.00015084,2]
[419822111,1775398250894,-1061.81527379,0.00015084,2]
[419822112,1775398250904,-1057.14035371,0.00015084,2]
[419822113,1775398250914,-1071.40501125,0.00015084,2]
[419822114,1775398250923,-1036.90858996,0.00015084,2]
[419822115,1775398250933,-1060.5882796,0.00015084,2]
[419822116,1775398250943,-1060.03598109,0.00015084,2]
[419822117,1775398250952,-1425.0,0.00015086,2]
[419822118,1775398250962,-1115.0,0.000151,2]
[419822119,1775398250972,-500.0,0.00015132,2]
[419822120,1775398250982,-151.0,0.00015132,2]
[419822121,1775398250991,-1425.0,0.00015136,2]
[419822122,1775398251002,-1425.0,0.0001514,2]
[419822123,1775398251011,-505.3,0.00015158,2]
[419822124,1775398251022,-500.0,0.00015187,2]
[419822125,1775398251032,-151.0,0.00015187,2]
[419822126,1775398251043,-10000.0,0.00015205,2]
[419822127,1775398251053,-600.0,0.00015206,2]
[419822128,1775398251063,-340.29,0.00015206,2]
[419822129,1775398251073,-385.3,0.00015234,2]
[419822130,1775398251084,-500.0,0.00015242,2]
[419822131,1775398251096,-151.0,0.00015242,2]
[419822132,1775398251106,-1425.0,0.00015266,2]
[419822133,1775398251117,-9035.0,0.00015273,2]
[419822134,1775398251128,-1481.23780761,0.00015295,2]
[419822135,1775398251139,-200.0,0.00015295,2]
[419822136,1775398251150,-217.15233878,0.00015295,2]
[419822137,1775398251160,-339.62894544,0.00015295,2]
[419822138,1775398251171,-181.08010149,0.00015295,2]
[419822139,1775398251181,-771.01748645,0.00015295,2]
[419822140,1775398251192,-200.0,0.00015295,2]
[419822141,1775398251203,-719.04747942,0.00015295,2]
[419822142,1775398251214,-290.26104003,0.00015295,2]
[419822143,1775398251225,-500.0,0.00015297,2]
[419822144,1775398251236,-151.0,0.00015297,2]
[419822145,1775398251247,-245.5664,0.000153,2]
[419822146,1775398251258,-1517.64,0.000153,2]
[419822147,1775398251270,-596.0,0.00015339,2]
[419822148,1775398251280,-1432.23819105,0.00015342,2]
[419822149,1775398251291,-740.76074935,0.00015342,2]
[419822150,1775398251301,-1381.20749087,0.00015342,2]
[419822151,1775398251311,-1171.96403511,0.00015342,2]
[419822152,1775398251320,-1000.0,0.00015342,2]
[419822153,1775398251330,-1189.37318328,0.00015342,2]
[419822154,1775398251340,-1193.24301277,0.00015342,2]
[419822155,1775398251351,-2000.0,0.00015342,2]
[419822156,1775398251362,-500.0,0.00015342,2]
[419822157,1775398251372,-2000.0,0.00015342,2]
[419822158,1775398251383,-2000.0,0.00015342,2]
[419822159,1775398251393,-1762.51968471,0.00015342,2]
[419822160,1775398251403,-2000.0,0.00015342,2]
[419822161,1775398251414,-2000.0,0.00015342,2]
[419822162,1775398251425,-1143.48326881,0.00015342,2]
[419822163,1775398251435,-1000.0,0.00015342,2]
[419822164,1775398251445,-515.96545288,0.00015342,2]
[419822165,1775398251455,-2000.0,0.00015342,2]
[419822166,1775398251465,-2000.0,0.00015342,2]
[419822167,1775398251475,-2000.0,0.00015342,2]
[419822168,1775398251485,-2000.0,0.00015342,2]
[419822169,1775398251495,-2000.0,0.00015342,2]
[419822170,1775398251506,-2000.0,0.00015342,2]
[419822171,1775398251517,-1558.37452133,0.00015342,2]
[419822172,1775398251528,-2000.0,0.00015342,2]
[419822173,1775398251538,-1753.85680119,0.00015342,2]
[419822174,1775398251548,-2000.0,0.00015342,2]
[419822175,1775398251558,-155.80569417,0.00015368,2]
[419822176,1775398251570,-1425.0,0.00015391,2]
[419822177,1775398251580,-1425.0,0.00015394,2]
[419822178,1775398251590,-512.60947705,0.000154,2]
[419822179,1775398251600,-1425.0,0.00015417,2]
[419822180,1775398251610,-503.0,0.00015417,4]
[419822181,1775398251620,-354.0,0.00015425,2]
[419822182,1775398251630,-1425.0,0.00015452,2]
[419822183,1775398251641,-15609.82,0.00015471,2]
[419822184,1775398251651,-2460.01,0.00015471,2]
[419822185,1775398251661,-6742.52,0.00015471,2]
[419822186,1775398251670,-28985.77,0.00015471,2]
[419822187,1775398251681,-2396.23,0.00015471,2]
[419822188,1775398251691,-500.0,0.00015479,2]
[419822189,1775398251701,-200.0,0.0001548,2]
[419822190,1775398251711,-1661.34286454,0.000155,3]
[419822191,1775398251721,-5643.7200837,0.000155,3]
[419822192,1775398251731,-1231.52674065,0.000155,2]
[419822193,1775398251741,-1425.0,0.00015583,2]
[419822194,1775398251751,-596.0,0.00015613,2]
[419822195,1775398251762,-1425.0,0.00015618,2]
[419822196,1775398251773,-733.77686062,0.00015634,2]
[419822197,1775398251783,-1425.0,0.00015635,2]
[419822198,1775398251794,-1425.0,0.00015679,2]
[419822199,1775398251804,-1425.0,0.00015683,2]
[419822200,1775398251814,-1308.01,0.000157,2]
[419822201,1775398251824,-2463.48,0.000157,2]
[419822202,1775398251834,-151.39,0.00015779,2]
[419822203,1775398251844,-151.39,0.00015779,2]
[419822204,1775398251855,-151.39,0.00015779,2]
[419822205,1775398251865,-151.39,0.00015779,2]
[419822206,1775398251875,-10286.0724003,0.000158,2]
[419822207,1775398251885,-2744.68006612,0.000158,2]
[419822208,1775398251895,-1425.0,0.00015801,2]
[419822209,1775398251906,-1536.04360649,0.00015843,2]
[419822210,1775398251916,-200.0,0.00015843,2]
[419822211,1775398251926,-225.18697532,0.00015843,2]
[419822212,1775398251936,-187.78006525,0.00015843,2]
[419822213,1775398251947,-799.54513345,0.00015843,2]
[419822214,1775398251957,-200.0,0.00015843,2]
[419822215,1775398251966,-745.65223616,0.00015843,2]
[419822216,1775398251978,-301.00069851,0.00015843,2]
[419822217,1775398251988,-596.0,0.00015887,2]
[419822218,1775398251998,-2000.0,0.0001589,2]
[419822219,1775398252009,-250.0,0.0001589,2]
[419822220,1775398252019,-250.0,0.0001589,2]
[419822221,1775398252029,-250.0,0.0001589,2]
[419822222,1775398252041,-2509.3602543,0.0001589,2]
[419822223,1775398252051,-2447.77606198,0.0001589,2]
[419822224,1775398252061,-950.63286364,0.0001589,2]
[419822225,1775398252071,-1065.40450783,0.0001589,2]
[419822226,1775398252081,-1000.0,0.0001589,2]
[419822227,1775398252091,-502.58762782,0.0001589,2]
[419822228,1775398252101,-2500.0,0.0001589,2]
[419822229,1775398252112,-2500.0,0.0001589,2]
[419822230,1775398252124,-1100.33490613,0.0001589,2]
[419822231,1775398252135,-823.00574972,0.0001589,2]
[419822232,1775398252146,-2500.0,0.0001589,2]
[419822233,1775398252156,-2500.0,0.0001589,2]
[419822234,1775398252167,-2500.0,0.0001589,2]
[419822235,1775398252178,-1115.0,0.00015895,2]
[419822236,1775398252189,-53617.5036391,0.00015899,2]
[419822237,1775398252199,-50154.49209134,0.000159,2]
[419822238,1775398252209,-1302355.42216291,0.000159,5]
[419822239,1775398254224,-642.76051177,0.00015801,2]
[419822240,1775398254255,-1357.23948823,0.00015801,2]
[419822241,1775398254266,-9653.56966632,0.000159,5]
[419822242,1775398254277,-204730.76591141,0.000159,5]
[419822243,1775398254304,-1867.03752048,0.000159,5]
[419822244,1775398254849,500.0,8.623e-05,2]
[419822245,1775398254887,250.0,8.623e-05,2]
[419822246,1775398254975,-523.9047612,0.00013698,2]
[419822247,1775398254985,-31.57842731,0.00015401,2]
[419822248,1775398255051,-1968.42157269,0.00015401,2]
[419822249,1775398255060,-2000.0,0.00015501,2]
[419822250,1775398255069,-2000.0,0.00015601,2]
[419822251,1775398255080,-2000.0,0.00015701,2]
[419822252,1775398255089,-49309.63909206,0.000159,5]
[419822253,1775398255208,-1563.0,0.000159,5]
[419822254,1775398255220,-250.58970825,0.000159,5]
[419822255,1775398255817,-1634.08568713,0.00015301,2]
[419822256,1775398255842,-1000.46413845,0.00015201,2]
[419822257,1775398255852,-365.91431287,0.00015301,2]
[419822258,1775398255861,-5883.62154868,0.000159,5]
[419822259,1775398255873,-834339.311716,0.000159,5]
[419822260,1775398255913,-323.88802392,0.000159,5]
[419822261,1775398255925,-499.82095449,0.000159,5]
[419822262,1775398255992,500.0,8.622e-05,2]
[419822263,1775398256023,500.0,8.622e-05,2]
[419822264,1775398256053,164.2374577,8.622e-05,2]
[419822265,1775398256480,273.0,8.622e-05,2]
[419822266,1775398256513,472.3296,8.501e-05,2]
[419822267,1775398256654,1504.0387564,8.624e-05,2]
[419822268,1775398257640,9000.01,8.523e-05,2]
[419822269,1775398262277,500.0,8.603e-05,2]
[419822270,1775398270150,450.12573485,8.623e-05,2]
[419822271,1775398270308,49.87426515,8.622e-05,2]
[419822272,1775398270331,450.12573485,8.622e-05,2]
[419822273,1775398270607,500.0,8.622e-05,2]
[419822274,1775398271009,422.71746775,8.622e-05,2]
[419822275,1775398271215,8627.1667974,8.522e-05,2]
[419822276,1775398271240,10000.01,8.522e-05,2]
[419822277,1775398271266,10000.01,8.522e-05,2]
[419822278,1775398271292,10000.01,8.522e-05,2]
[419822279,1775398271317,10000.01,8.522e-05,2]
[419822280,1775398271342,10000.01,8.522e-05,2]
[419822281,1775398271366,10000.01,8.522e-05,2]
[419822282,1775398271394,10000.01,8.522e-05,2]
[419822283,1775398271421,10000.01,8.522e-05,2]
[419822284,1775398271446,10000.01,8.522e-05,2]
[419822285,1775398351878,2437.5745,8.28e-05,2]
[419822287,1775398571584,329.2585,8.393e-05,2]
[419822289,1775398835790,-354.0,8.493e-05,2]
[419822290,1775398835812,-250.0,8.498e-05,2]
[419822291,1775398835834,-300.0,8.502e-05,2]
[419822292,1775398835856,-300.0,8.502e-05,2]
[419822293,1775398835877,-1200.0,8.502e-05,2]
[419822294,1775398835898,-500.0,8.503e-05,2]
[419822295,1775398835920,-500.0,8.503e-05,2]
[419822296,1775398835944,-164.4153201,8.503e-05,2]
[419822297,1775398835967,-500.0,8.503e-05,2]
[419822298,1775398835988,-500.11329592,8.503e-05,2]
[419822299,1775398836011,-500.0,8.503e-05,2]
[419822300,1775398836033,-500.0,8.503e-05,2]
[419822301,1775398836054,-500.13692831,8.503e-05,2]
[419822302,1775398836074,-500.0,8.503e-05,2]
[419822303,1775398836094,-343.58098751,8.503e-05,2]
[419822304,1775398836115,-501.43135783,8.503e-05,2]
[419822305,1775398836137,-500.0,8.503e-05,2]
[419822306,1775398836159,-500.0,8.503e-05,2]
[419822307,1775398836180,-191.05580028,8.503e-05,2]
[419822308,1775398836201,-250.0,8.504e-05,2]
[419822309,1775398836223,-1145.26631005,8.507e-05,2]
[419822310,1775398837662,-3854.73368995,8.507e-05,2]
[419822311,1775398837685,-1178.87519888,8.515e-05,2]
[419822312,1775398837709,-500.0,8.521e-05,2]
[419822313,1775398837731,-1069.49567053,8.521e-05,2]
[419822314,1775398837755,-180.04037561,8.521e-05,2]
[419822315,1775398837785,-500.0,8.521e-05,2]
[419822316,1775398837808,-500.0,8.521e-05,2]
[419822317,1775398837833,-500.0,8.521e-05,2]
[419822318,1775398837856,-500.0,8.521e-05,2]
[419822319,1775398837879,-500.0,8.521e-05,2]
[419822320,1775398837905,-500.0,8.521e-05,2]
[419822321,1775398837928,-216.85506503,8.521e-05,2]
[419822322,1775398838579,-283.14493497,8.521e-05,2]
[419822323,1775398838605,-500.0,8.521e-05,2]
[419822324,1775398838628,-208.07963329,8.521e-05,2]
[419822325,1775398838651,-500.0,8.521e-05,2]
[419822326,1775398838675,-500.0,8.521e-05,2]
[419822327,1775398838698,-500.0,8.521e-05,2]
[419822328,1775398838727,-1043.9856074,8.521e-05,2]
[419822329,1775398838755,-1043.9856074,8.521e-05,2]
[419822330,1775398838783,-1043.9856074,8.521e-05,2]
[419822331,1775398838808,-1043.9856074,8.521e-05,2]
[419822332,1775398838833,-1043.9856074,8.521e-05,2]
[419822333,1775398838857,-1043.9856074,8.521e-05,2]
[419822334,1775398838882,-1043.9856074,8.521e-05,2]
[419822335,1775398838906,-200.87617994,8.521e-05,2]
[419822336,1775398838994,-843.10942746,8.521e-05,2]
[419822337,1775398839459,-1043.9856074,8.521e-05,2]
[419822338,1775398839486,-1043.9856074,8.521e-05,2]
[419822339,1775398839512,-1043.9856074,8.521e-05,2]
[419822340,1775398839540,-1043.9856074,8.521e-05,2]
[419822341,1775398839568,-1043.9856074,8.521e-05,2]
[419822342,1775398839593,-1043.9856074,8.521e-05,2]
[419822343,1775398839617,-1043.9856074,8.521e-05,2]
[419822344,1775398839641,-1043.9856074,8.521e-05,2]
[419822345,1775398839666,-805.00571334,8.521e-05,2]
[419822346,1775398839779,-238.97989406,8.521e-05,2]
[419822347,1775398839808,-1043.9856074,8.521e-05,2]
[419822348,1775398839836,-1043.9856074,8.521e-05,2]
[419822349,1775398839865,-1043.9856074,8.521e-05,2]
[419822350,1775398839891,-1043.9856074,8.521e-05,2]
[419822351,1775398839918,-1043.9856074,8.521e-05,2]
[419822352,1775398839943,-1043.9856074,8.521e-05,2]
[419822353,1775398839968,-1043.9856074,8.521e-05,2]
[419822354,1775398839994,-1043.9856074,8.521e-05,2]
[419822355,1775398840020,-1043.9856074,8.521e-05,2]
[419822356,1775398840046,-365.14963934,8.521e-05,2]
[419822357,1775398840114,-678.83596806,8.521e-05,2]
[419822358,1775398840148,-1043.9856074,8.521e-05,2]
[419822359,1775398840182,-1043.9856074,8.521e-05,2]
[419822360,1775398840217,-1043.9856074,8.521e-05,2]
[419822361,1775398840250,-1043.9856074,8.521e-05,2]
[419822362,1775398840332,-1043.9856074,8.521e-05,2]
[419822363,1775398840360,-1043.9856074,8.521e-05,2]
[419822364,1775398840387,-1043.9856074,8.521e-05,2]
[419822365,1775398840413,-1043.9856074,8.521e-05,2]
[419822366,1775398840442,-1043.9856074,8.521e-05,2]
[419822367,1775398840469,-1043.9856074,8.521e-05,2]
[419822368,1775398840500,-1043.9856074,8.521e-05,2]
[419822369,1775398840526,-1043.9856074,8.521e-05,2]
[419822370,1775398840553,-1043.9856074,8.521e-05,2]
[419822371,1775398840580,-604.1295334,8.521e-05,2]
[419822372,1775398840618,-439.856074,8.521e-05,2]
[419822373,1775398840652,-1043.9856074,8.521e-05,2]
[419822374,1775398840685,-1043.9856074,8.521e-05,2]
[419822375,1775398840718,-1043.9856074,8.521e-05,2]
[419822376,1775398840751,-1043.9856074,8.521e-05,2]
[419822377,1775398840828,-1043.9856074,8.521e-05,2]
[419822378,1775398840861,-1043.9856074,8.521e-05,2]
[419822379,1775398840893,-1043.9856074,8.521e-05,2]
[419822380,1775398840926,-1043.9856074,8.521e-05,2]
[419822381,1775398840961,-604.1395334,8.521e-05,2]
[419822382,1775398842010,-439.846074,8.521e-05,2]
[419822383,1775398842043,-1043.9856074,8.521e-05,2]
[419822384,1775398842428,-1043.9856074,8.521e-05,2]
[419822385,1775398842461,-1043.9856074,8.521e-05,2]
[419822386,1775398842493,-1043.9856074,8.521e-05,2]
[419822387,1775398842530,-1043.9856074,8.521e-05,2]
[419822388,1775398842556,-1043.9856074,8.521e-05,2]
[419822389,1775398842581,-1043.9856074,8.521e-05,2]
[419822390,1775398842606,-1043.9856074,8.521e-05,2]
[419822391,1775398842633,-1043.9856074,8.521e-05,2]
[419822392,1775398842656,-500.0,8.521e-05,2]
[419822393,1775398842679,-356.18063681,8.521e-05,2]
[419822394,1775398842705,-1030.51482537,8.521e-05,2]
[419822395,1775398842731,-1030.51482537,8.521e-05,2]
[419822396,1775398842756,-1030.51482537,8.521e-05,2]
[419822397,1775398842781,-832.34685008,8.521e-05,2]
[419822398,1775398842840,-198.16797529,8.521e-05,2]
[419822399,1775398842872,-1030.51482537,8.521e-05,2]
[419822400,1775398842904,-1030.51482537,8.521e-05,2]
[419822401,1775398842936,-1030.51482537,8.521e-05,2]
[419822402,1775398842967,-1030.51482537,8.521e-05,2]
[419822403,1775398842998,-329.04062109,8.521e-05,2]
[419822404,1775398843234,-701.47420428,8.521e-05,2]
[419822405,1775398843259,-1030.51482537,8.521e-05,2]
[419822406,1775398843284,-1030.51482537,8.521e-05,2]
[419822407,1775398843310,-1030.51482537,8.521e-05,2]
[419822408,1775398843335,-1030.51482537,8.521e-05,2]
[419822409,1775398843362,-1030.51482537,8.521e-05,2]
[419822410,1775398843388,-1030.51482537,8.521e-05,2]
[419822411,1775398843414,-1030.51482537,8.521e-05,2]
[419822412,1775398843439,-1030.51482537,8.521e-05,2]
[419822413,1775398843464,-1030.51482537,8.521e-05,2]
[419822414,1775398843488,-23.89236739,8.521e-05,2]
[419822415,1775398843671,-1006.62245798,8.521e-05,2]
[419822416,1775398843697,-1030.51482537,8.521e-05,2]
[419822417,1775398843722,-1030.51482537,8.521e-05,2]
[419822418,1775398843749,-1030.51482537,8.521e-05,2]
[419822419,1775398843775,-1030.51482537,8.521e-05,2]
[419822420,1775398843800,-1030.51482537,8.521e-05,2]
[419822421,1775398843826,-1030.51482537,8.521e-05,2]
[419822422,1775398843852,-1030.51482537,8.521e-05,2]
[419822423,1775398843878,-1030.51482537,8.521e-05,2]
[419822424,1775398843905,-749.25893906,8.521e-05,2]
[419822425,1775398844247,-281.25588631,8.521e-05,2]
[419822426,1775398844269,-500.0,8.521e-05,2]
[419822427,1775398844290,-500.0,8.521e-05,2]
[419822428,1775398844312,-500.0,8.521e-05,2]
[419822429,1775398844336,-413.5604411,8.521e-05,2]
[419822430,1775398844358,-500.0,8.521e-05,2]
[419822431,1775398844380,-500.0,8.521e-05,2]
[419822432,1775398844401,-500.0,8.521e-05,2]
[419822433,1775398844424,-500.0,8.521e-05,2]
[419822434,1775398844446,-500.0,8.521e-05,2]
[419822435,1775398844470,-557.53676032,8.521e-05,2]
[419822436,1775398844495,-500.0,8.521e-05,2]
[419822437,1775398844518,-591.48593699,8.521e-05,2]
[419822438,1775398844546,-1030.51482541,8.521e-05,2]
[419822439,1775398844573,-1030.51482541,8.521e-05,2]
[419822440,1775398844599,-1030.51482541,8.521e-05,2]
[419822441,1775398844620,-299.96275471,8.521e-05,2]
[419822442,1775398844641,-173.05964003,8.521e-05,2]
[419822443,1775398844662,-91.59410431,8.521e-05,2]
[419822444,1775398844791,-408.57562105,8.521e-05,2]
[419822445,1775398844812,-516.8891154,8.521e-05,2]
[419822446,1775398844835,-500.0,8.521e-05,2]
[419822447,1775398844857,-500.0,8.521e-05,2]
[419822448,1775398844879,-500.0,8.521e-05,2]
[419822449,1775398844901,-326.2671295,8.521e-05,2]
[419822450,1775398844921,-500.0,8.521e-05,2]
[419822451,1775398844943,-500.0,8.521e-05,2]
[419822452,1775398844964,-500.0,8.521e-05,2]
[419822453,1775398844985,-500.0,8.521e-05,2]
[419822454,1775398845006,-500.0,8.521e-05,2]
[419822455,1775398845028,-500.0,8.521e-05,2]
[419822456,1775398845050,-500.0,8.521e-05,2]
[419822457,1775398845071,-500.0,8.521e-05,2]
[419822458,1775398845093,-500.0,8.521e-05,2]
[419822459,1775398845114,-500.0,8.521e-05,2]
[419822460,1775398845137,-500.0,8.521e-05,2]
[419822461,1775398845160,-176.84980017,8.521e-05,2]
[419822462,1775398845184,-150.0,8.521e-05,2]
[419822463,1775398845210,-1421.41833388,8.522e-05,2]
[419822464,1775398845356,-10000.0,8.522e-05,2]
[419822465,1775398845780,-10000.0,8.522e-05,2]
[419822466,1775398845957,-10000.0,8.522e-05,2]
[419822467,1775398846674,-10000.0,8.522e-05,2]
[419822468,1775398846770,-10000.0,8.522e-05,2]
[419822469,1775398846873,-10000.0,8.522e-05,2]
[419822470,1775398846966,-10000.0,8.522e-05,2]
[419822471,1775398849523,-10000.0,8.522e-05,2]
[419822472,1775398850320,-10000.0,8.522e-05,2]
[419822473,1775398850723,-10000.0,8.522e-05,2]
[419822474,1775398850817,-10000.0,8.522e-05,2]
[419822475,1775398851145,-10000.0,8.522e-05,2]
[419822476,1775398851359,-5639.794964,8.522e-05,2]
[419822477,1775398851455,-10000.01,8.522e-05,2]
[419822478,1775398851484,-10000.0,8.522e-05,2]
[419822479,1775398851551,-10000.01,8.522e-05,2]
[419822480,1775398851847,-10000.0,8.522e-05,2]
[419822481,1775398853386,-10000.0,8.522e-05,2]
[419822482,1775398853507,-10000.0,8.522e-05,2]
[419822483,1775398853649,-10000.0,8.522e-05,2]
[419822484,1775398854624,-500.0,8.521e-05,2]
[419822485,1775398854649,-9500.0,8.522e-05,2]
[419822486,1775398855052,-10000.0,8.522e-05,2]
[419822487,1775398855495,-10000.0,8.522e-05,2]
[419822488,1775398857879,-10000.0,8.522e-05,2]
[419822489,1775398858847,-10000.0,8.522e-05,2]
[419822490,1775398859774,-10000.0,8.522e-05,2]
[419822491,1775398860741,-10000.0,8.522e-05,2]
[419822492,1775398862625,-150.0,8.521e-05,2]
[419822493,1775398862648,-300.0,8.521e-05,2]
[419822494,1775398862672,-9550.0,8.522e-05,2]
[419822495,1775398864455,-10000.0,8.522e-05,2]
[419822496,1775398865562,-10000.0,8.522e-05,2]
[419822497,1775398871680,-4823.0,8.522e-05,2]
[419822498,1775398888572,10000.01,8.351e-05,2]
[419822499,1775398888595,28.817,8.351e-05,2]
[419822500,1775398888853,569.09,8.351e-05,2]
[419822501,1775398922821,-300.0,8.52e-05,2]
[419822502,1775398922844,-6799.43305103,8.521e-05,2]
[419822503,1775398922867,-1047.50940685,8.521e-05,2]
[419822504,1775398922889,-1853.05754212,8.521e-05,2]
[419822505,1775398924947,-4516.57137096,8.521e-05,2]
[419822506,1775398924969,-2681.52205736,8.521e-05,2]
[419822507,1775398924992,-272.0,8.521e-05,2]
[419822508,1775398925018,-2529.90657168,8.522e-05,2]
[419822509,1775398926321,-10000.0,8.522e-05,2]
[419822510,1775398927500,-3591.26589346,8.422e-05,2]
[419822511,1775398927523,-6408.73410654,8.522e-05,2]
[419822512,1775398928583,-10000.0,8.522e-05,2]
[419822513,1775398929640,-10000.0,8.522e-05,2]
[419822514,1775398934363,-1074.99402984,8.521e-05,2]
[419822515,1775398934387,-1747.00597016,8.522e-05,2]
[419822518,1775399236138,-300.0,8.42e-05,2]
[419822519,1775399236159,-300.0,8.42e-05,2]
[419822520,1775399236179,-270.0,8.42e-05,2]
[419822521,1775399236199,-3854.52103281,8.42e-05,2]
[419822522,1775399306517,218.11,8.226e-05,2]
[419822525,1775399364148,152.0,6.435e-05,2]
[419822526,1775399364202,152.0,6.435e-05,2]
[419822527,1775399364250,152.0,6.435e-05,2]
[419822528,1775399364377,152.0,6.435e-05,2]
[419822529,1775399364422,101.63335602,6.435e-05,2]
[419822530,1775399364450,50.36664398,6.435e-05,2]
[419822531,1775399364631,152.0,6.435e-05,2]
[419822532,1775399364881,152.0,6.435e-05,2]
[419822533,1775399365154,152.0,6.435e-05,2]
[419822534,1775399365419,152.0,6.435e-05,2]
[419822535,1775399365696,152.0,6.435e-05,2]
[419822536,1775399365954,152.0,6.435e-05,2]
[419822537,1775399366287,152.0,6.435e-05,2]
[419822538,1775399366449,152.0,6.435e-05,2]
[419822539,1775399366695,152.0,6.435e-05,2]
[419822549,1775399432380,-300.0,8.402e-05,2]
[419822550,1775399432390,-300.0,8.402e-05,2]
[419822551,1775399432400,-1179.48256209,8.402e-05,2]
[419822552,1775399432633,-20.51743791,8.402e-05,2]
[419822553,1775399432645,-150.0,8.402e-05,2]
[419822554,1775399432655,-300.0,8.402e-05,2]
[419822555,1775399432665,-270.0,8.402e-05,2]
[419822556,1775399432674,-733997.62849361,8.403e-05,2]
[419822557,1775399432686,-81012.14174414,8.403e-05,2]
[419822558,1775399432697,-7402.05579878,8.403e-05,2]
[419822559,1775399432709,-100536.48674943,8.403e-05,2]
[419822560,1775399432720,-1254.41808677,8.403e-05,2]
[419822561,1775399432885,-1000.0,8.403e-05,2]
[419822562,1775399432983,-1150.0,8.403e-05,2]
[419822564,1775399437839,-9632.71131196,8.403e-05,2]
[419822565,1775399437851,-124830.10380634,8.403e-05,2]
[419822566,1775399437893,-500.0,8.403e-05,2]
[419822567,1775399438007,-1438684.45400897,8.403e-05,2]
[419822568,1775399438017,-1200.0,8.42e-05,2]
[419822569,1775399438027,-1145.47896719,8.42e-05,2]
[419822570,1775399438036,-250.0,8.421e-05,2]
[419822571,1775399438047,-432.1961,8.421e-05,2]
[419822572,1775399438056,-150.0,8.421e-05,2]
[419822573,1775399438066,-926.0,8.422e-05,2]